Workbook

Sheet Danh sách Kiểm kê Nhà kho
B1: DANH SÁCH KIỂM KÊ NHÀ KHO
B2: TỔNG GIÁ TRỊ KIỂM KÊ: | C2: MỤC KIỂM KÊ: | D2: SỐ THÙNG: | E2: DANH SÁCH CHỌN KIỂM KÊ | F2: TÌM THÙNG
B3: =SUM(Danh_Sách_Kiểm_Kê[GIÁ TRỊ KIỂM KÊ]) -> 102278000 | C3: =COUNTA(Danh_Sách_Kiểm_Kê[MÔ TẢ]) -> 11 | D3: =SUMPRODUCT((1/COUNTIF(Danh_Sách_Kiểm_Kê[THÙNG '#],Danh_Sách_Kiểm_Kê[THÙNG '#]&""))) -> 6
B4: SKU | C4: MÔ TẢ | D4: THÙNG # | E4: VỊ TRÍ | F4: ĐƠN VỊ | G4: SL | H4: SL ĐẶT HÀNG LẠI | I4: CHI PHÍ | J4: GIÁ TRỊ KIỂM KÊ | K4: ĐẶT HÀNG LẠI
B5: SP7875 | C5: Mục 1 | D5: T345 | E5: =IFERROR(VLOOKUP(Danh_Sách_Kiểm_Kê[[#This Row],[THÙNG '#]],Tìm_Thùng[],3,FALSE),"") -> Hàng 2, khoảng trống 1 | F5: Một | G5: 20 | H5: 10 | I5: 660000 | J5: =Danh_Sách_Kiểm_Kê[[#This Row],[SL]]*Danh_Sách_Kiểm_Kê[[#This Row],[CHI PHÍ]] -> 13200000 | K5: =IFERROR(IF(Danh_Sách_Kiểm_Kê[[#This Row],[SL]]<=Danh_Sách_Kiểm_Kê[[#This Row],[SL ĐẶT HÀNG LẠI]],1,0),0) -> 0
B6: TR87680 | C6: Mục 2 | D6: T345 | E6: =IFERROR(VLOOKUP(Danh_Sách_Kiểm_Kê[[#This Row],[THÙNG '#]],Tìm_Thùng[],3,FALSE),"") -> Hàng 2, khoảng trống 1 | F6: Một | G6: 30 | H6: 15 | I6: 880000 | J6: =Danh_Sách_Kiểm_Kê[[#This Row],[SL]]*Danh_Sách_Kiểm_Kê[[#This Row],[CHI PHÍ]] -> 26400000 | K6: =IFERROR(IF(Danh_Sách_Kiểm_Kê[[#This Row],[SL]]<=Danh_Sách_Kiểm_Kê[[#This Row],[SL ĐẶT HÀNG LẠI]],1,0),0) -> 0
B7: MK676554 | C7: Mục 3 | D7: T5789 | E7: =IFERROR(VLOOKUP(Danh_Sách_Kiểm_Kê[[#This Row],[THÙNG '#]],Tìm_Thùng[],3,FALSE),"") -> Hàng 1, khoảng trống 1 | F7: Một | G7: 10 | H7: 5 | I7: 110000 | J7: =Danh_Sách_Kiểm_Kê[[#This Row],[SL]]*Danh_Sách_Kiểm_Kê[[#This Row],[CHI PHÍ]] -> 1100000 | K7: =IFERROR(IF(Danh_Sách_Kiểm_Kê[[#This Row],[SL]]<=Danh_Sách_Kiểm_Kê[[#This Row],[SL ĐẶT HÀNG LẠI]],1,0),0) -> 0
B8: YE98767 | C8: Mục 4 | D8: T9876 | E8: =IFERROR(VLOOKUP(Danh_Sách_Kiểm_Kê[[#This Row],[THÙNG '#]],Tìm_Thùng[],3,FALSE),"") -> Hàng 3, khoảng trống 2 | F8: Hộp (chứa 10 đơn vị) | G8: 40 | H8: 10 | I8: 330000 | J8: =Danh_Sách_Kiểm_Kê[[#This Row],[SL]]*Danh_Sách_Kiểm_Kê[[#This Row],[CHI PHÍ]] -> 13200000 | K8: =IFERROR(IF(Danh_Sách_Kiểm_Kê[[#This Row],[SL]]<=Danh_Sách_Kiểm_Kê[[#This Row],[SL ĐẶT HÀNG LẠI]],1,0),0) -> 0
B9: XR23423 | C9: Mục 5 | D9: T098 | E9: =IFERROR(VLOOKUP(Danh_Sách_Kiểm_Kê[[#This Row],[THÙNG '#]],Tìm_Thùng[],3,FALSE),"") -> Hàng 3, khoảng trống 1 | F9: Một | G9: 12 | H9: 10 | I9: 572000 | J9: =Danh_Sách_Kiểm_Kê[[#This Row],[SL]]*Danh_Sách_Kiểm_Kê[[#This Row],[CHI PHÍ]] -> 6864000 | K9: =IFERROR(IF(Danh_Sách_Kiểm_Kê[[#This Row],[SL]]<=Danh_Sách_Kiểm_Kê[[#This Row],[SL ĐẶT HÀNG LẠI]],1,0),0) -> 0
B10: PW98762 | C10: Mục 6 | D10: T345 | E10: =IFERROR(VLOOKUP(Danh_Sách_Kiểm_Kê[[#This Row],[THÙNG '#]],Tìm_Thùng[],3,FALSE),"") -> Hàng 2, khoảng trống 1 | F10: Một | G10: 7 | H10: 10 | I10: 1100000 | J10: =Danh_Sách_Kiểm_Kê[[#This Row],[SL]]*Danh_Sách_Kiểm_Kê[[#This Row],[CHI PHÍ]] -> 7700000 | K10: =IFERROR(IF(Danh_Sách_Kiểm_Kê[[#This Row],[SL]]<=Danh_Sách_Kiểm_Kê[[#This Row],[SL ĐẶT HÀNG LẠI]],1,0),0) -> 1
B11: BM87684 | C11: Mục 7 | D11: T349 | E11: =IFERROR(VLOOKUP(Danh_Sách_Kiểm_Kê[[#This Row],[THÙNG '#]],Tìm_Thùng[],3,FALSE),"") -> Hàng 1, khoảng trống 2 | F11: Một | G11: 10 | H11: 5 | I11: 220000 | J11: =Danh_Sách_Kiểm_Kê[[#This Row],[SL]]*Danh_Sách_Kiểm_Kê[[#This Row],[CHI PHÍ]] -> 2200000 | K11: =IFERROR(IF(Danh_Sách_Kiểm_Kê[[#This Row],[SL]]<=Danh_Sách_Kiểm_Kê[[#This Row],[SL ĐẶT HÀNG LẠI]],1,0),0) -> 0
B12: BH67655 | C12: Mục 8 | D12: T5789 | E12: =IFERROR(VLOOKUP(Danh_Sách_Kiểm_Kê[[#This Row],[THÙNG '#]],Tìm_Thùng[],3,FALSE),"") -> Hàng 1, khoảng trống 1 | F12: Một | G12: 19 | H12: 10 | I12: 66000 | J12: =Danh_Sách_Kiểm_Kê[[#This Row],[SL]]*Danh_Sách_Kiểm_Kê[[#This Row],[CHI PHÍ]] -> 1254000 | K12: =IFERROR(IF(Danh_Sách_Kiểm_Kê[[#This Row],[SL]]<=Danh_Sách_Kiểm_Kê[[#This Row],[SL ĐẶT HÀNG LẠI]],1,0),0) -> 0
B13: WT98768 | C13: Mục 9 | D13: T9875 | E13: =IFERROR(VLOOKUP(Danh_Sách_Kiểm_Kê[[#This Row],[THÙNG '#]],Tìm_Thùng[],3,FALSE),"") -> Hàng 2, khoảng trống 2 | F13: Gói (chứa 5 đơn vị) | G13: 20 | H13: 30 | I13: 308000 | J13: =Danh_Sách_Kiểm_Kê[[#This Row],[SL]]*Danh_Sách_Kiểm_Kê[[#This Row],[CHI PHÍ]] -> 6160000 | K13: =IFERROR(IF(Danh_Sách_Kiểm_Kê[[#This Row],[SL]]<=Danh_Sách_Kiểm_Kê[[#This Row],[SL ĐẶT HÀNG LẠI]],1,0),0) -> 1
B14: TS3456 | C14: Mục 10 | D14: T349 | E14: =IFERROR(VLOOKUP(Danh_Sách_Kiểm_Kê[[#This Row],[THÙNG '#]],Tìm_Thùng[],3,FALSE),"") -> Hàng 1, khoảng trống 2 | F14: Một | G14: 15 | H14: 8 | I14: 1320000 | J14: =Danh_Sách_Kiểm_Kê[[#This Row],[SL]]*Danh_Sách_Kiểm_Kê[[#This Row],[CHI PHÍ]] -> 19800000 | K14: =IFERROR(IF(Danh_Sách_Kiểm_Kê[[#This Row],[SL]]<=Danh_Sách_Kiểm_Kê[[#This Row],[SL ĐẶT HÀNG LẠI]],1,0),0) -> 0
B15: WDG123 | C15: Mục 11 | D15: T349 | E15: =IFERROR(VLOOKUP(Danh_Sách_Kiểm_Kê[[#This Row],[THÙNG '#]],Tìm_Thùng[],3,FALSE),"") -> Hàng 1, khoảng trống 2 | F15: Một | G15: 25 | H15: 15 | I15: 176000 | J15: =Danh_Sách_Kiểm_Kê[[#This Row],[SL]]*Danh_Sách_Kiểm_Kê[[#This Row],[CHI PHÍ]] -> 4400000 | K15: =IFERROR(IF(Danh_Sách_Kiểm_Kê[[#This Row],[SL]]<=Danh_Sách_Kiểm_Kê[[#This Row],[SL ĐẶT HÀNG LẠI]],1,0),0) -> 0

Sheet Danh sách Chọn Kiểm kê
B1: DANH SÁCH CHỌN KIỂM KÊ
C2: DANH SÁCH KIỂM KÊ
B4: ĐƠN HÀNG # | C4: SKU | D4: SL CHỌN | E4: SL CÓ SẴN | F4: MÔ TẢ MỤC | G4: ĐƠN VỊ | H4: THÙNG # | I4: VỊ TRÍ
B5: TP001-1 | C5: SP7875 | D5: 3 | E5: =IFERROR(VLOOKUP(InventoryPickList[SKU],Danh_Sách_Kiểm_Kê[],6,FALSE),"") -> 20 | F5: =IFERROR(VLOOKUP(InventoryPickList[SKU],Danh_Sách_Kiểm_Kê[],2,FALSE),"") -> Mục 1 | G5: =IFERROR(VLOOKUP(InventoryPickList[SKU],Danh_Sách_Kiểm_Kê[],5,FALSE),"") -> Một | H5: =IFERROR(VLOOKUP(InventoryPickList[SKU],Danh_Sách_Kiểm_Kê[],3,FALSE),"") -> T345 | I5: =IFERROR(VLOOKUP(InventoryPickList[SKU],Danh_Sách_Kiểm_Kê[],4,FALSE),"") -> Hàng 2, khoảng trống 1
B6: TP001-1 | C6: YE98767 | D6: 1 | E6: =IFERROR(VLOOKUP(InventoryPickList[SKU],Danh_Sách_Kiểm_Kê[],6,FALSE),"") -> 40 | F6: =IFERROR(VLOOKUP(InventoryPickList[SKU],Danh_Sách_Kiểm_Kê[],2,FALSE),"") -> Mục 4 | G6: =IFERROR(VLOOKUP(InventoryPickList[SKU],Danh_Sách_Kiểm_Kê[],5,FALSE),"") -> Hộp (chứa 10 đơn vị) | H6: =IFERROR(VLOOKUP(InventoryPickList[SKU],Danh_Sách_Kiểm_Kê[],3,FALSE),"") -> T9876 | I6: =IFERROR(VLOOKUP(InventoryPickList[SKU],Danh_Sách_Kiểm_Kê[],4,FALSE),"") -> Hàng 3, khoảng trống 2
B7: TP001-1 | C7: BM87684 | D7: 2 | E7: =IFERROR(VLOOKUP(InventoryPickList[SKU],Danh_Sách_Kiểm_Kê[],6,FALSE),"") -> 10 | F7: =IFERROR(VLOOKUP(InventoryPickList[SKU],Danh_Sách_Kiểm_Kê[],2,FALSE),"") -> Mục 7 | G7: =IFERROR(VLOOKUP(InventoryPickList[SKU],Danh_Sách_Kiểm_Kê[],5,FALSE),"") -> Một | H7: =IFERROR(VLOOKUP(InventoryPickList[SKU],Danh_Sách_Kiểm_Kê[],3,FALSE),"") -> T349 | I7: =IFERROR(VLOOKUP(InventoryPickList[SKU],Danh_Sách_Kiểm_Kê[],4,FALSE),"") -> Hàng 1, khoảng trống 2
B8: TP001-1 | C8: TS3456 | D8: 6 | E8: =IFERROR(VLOOKUP(InventoryPickList[SKU],Danh_Sách_Kiểm_Kê[],6,FALSE),"") -> 15 | F8: =IFERROR(VLOOKUP(InventoryPickList[SKU],Danh_Sách_Kiểm_Kê[],2,FALSE),"") -> Mục 10 | G8: =IFERROR(VLOOKUP(InventoryPickList[SKU],Danh_Sách_Kiểm_Kê[],5,FALSE),"") -> Một | H8: =IFERROR(VLOOKUP(InventoryPickList[SKU],Danh_Sách_Kiểm_Kê[],3,FALSE),"") -> T349 | I8: =IFERROR(VLOOKUP(InventoryPickList[SKU],Danh_Sách_Kiểm_Kê[],4,FALSE),"") -> Hàng 1, khoảng trống 2
B9: TP001-1 | C9: MK676554 | D9: 3 | E9: =IFERROR(VLOOKUP(InventoryPickList[SKU],Danh_Sách_Kiểm_Kê[],6,FALSE),"") -> 10 | F9: =IFERROR(VLOOKUP(InventoryPickList[SKU],Danh_Sách_Kiểm_Kê[],2,FALSE),"") -> Mục 3 | G9: =IFERROR(VLOOKUP(InventoryPickList[SKU],Danh_Sách_Kiểm_Kê[],5,FALSE),"") -> Một | H9: =IFERROR(VLOOKUP(InventoryPickList[SKU],Danh_Sách_Kiểm_Kê[],3,FALSE),"") -> T5789 | I9: =IFERROR(VLOOKUP(InventoryPickList[SKU],Danh_Sách_Kiểm_Kê[],4,FALSE),"") -> Hàng 1, khoảng trống 1

Sheet Tìm Thùng
B1: TÌM THÙNG
B2: DANH SÁCH KIỂM KÊ
B4: THÙNG # | C4: MÔ TẢ | D4: VỊ TRÍ | E4: CHIỀU RỘNG | F4: CHIỀU CAO | G4: CHIỀU DÀI
B5: T345 | C5: Thùng lớn | D5: Hàng 2, khoảng trống 1 | E5: 50 | F5: 10 | G5: 10
B6: T5789 | C6: Thùng nhỏ | D6: Hàng 1, khoảng trống 1 | E6: 25 | F6: 5 | G6: 5
B7: T9876 | C7: Thùng lớn | D7: Hàng 3, khoảng trống 2 | E7: 50 | F7: 10 | G7: 10
B8: T098 | C8: Thùng vừa | D8: Hàng 3, khoảng trống 1 | E8: 30 | F8: 7 | G8: 10
B9: T349 | C9: Thùng nhỏ | D9: Hàng 1, khoảng trống 2 | E9: 25 | F9: 5 | G9: 5
B10: T5789 | C10: Thùng lớn | D10: Hàng 4, khoảng trống 5 | E10: 50 | F10: 10 | G10: 10
B11: T9875 | C11: Thùng lớn | D11: Hàng 2, khoảng trống 2 | E11: 50 | F11: 10 | G11: 10
